[Event "Titled Tuesday Blitz July 26 Late 2022"]
[White "Prydun, Andriy"]
[Black "Alexiadis, Hristos"]
[WhiteFideId "14145898"]
[BlackFideId "4249623"]
[WhiteElo "2063"]
[BlackElo "2416"]
[Result "0-1"]
[Round "07"]
[TimeControl "180+1"]
[Date "2022.07.26"]
[WhiteClock "0:00:01"]
[BlackClock "0:00:28"]

1. e4 {[%clk 0:02:37]}  c5 {[%clk 0:02:58]} 2. Nf3 {[%clk 0:02:37]}  d6 {[%clk 0:02:59]} 3. c3 {[%clk 0:02:37]}  Nf6 {[%clk 0:02:59]} 4. h3 {[%clk 0:02:37]}  g6 {[%clk 0:02:59]} 5. Bd3 {[%clk 0:02:35]}  Bg7 {[%clk 0:03:00]} 6. Bc2 {[%clk 0:02:35]}  O-O {[%clk 0:03:00]} 7. O-O {[%clk 0:02:35]}  e5 {[%clk 0:03:01]} 8. b3 {[%clk 0:02:31]}  Nc6 {[%clk 0:03:00]} 9. Bb2 {[%clk 0:02:31]}  d5 {[%clk 0:03:00]} 10. d3 {[%clk 0:02:31]}  d4 {[%clk 0:02:59]} 11. Nbd2 {[%clk 0:02:30]}  Ne8 {[%clk 0:02:57]} 12. a3 {[%clk 0:02:29]}  Nd6 {[%clk 0:02:56]} 13. b4 {[%clk 0:02:28]}  b6 {[%clk 0:02:56]} 14. Ba4 {[%clk 0:02:26]}  Bd7 {[%clk 0:02:53]} 15. Nc4 {[%clk 0:02:20]}  Nxc4 {[%clk 0:02:45]} 16. dxc4 {[%clk 0:02:20]}  Qe7 {[%clk 0:02:43]} 17. Nd2 {[%clk 0:02:11]}  Rfc8 {[%clk 0:02:29]} 18. Qb3 {[%clk 0:02:03]}  Be6 {[%clk 0:02:27]} 19. Bxc6 {[%clk 0:01:56]}  Rxc6 {[%clk 0:02:26]} 20. cxd4 {[%clk 0:01:56]}  cxd4 {[%clk 0:02:22]} 21. Rac1 {[%clk 0:01:53]}  b5 {[%clk 0:02:20]} 22. Qd3 {[%clk 0:01:51]}  bxc4 {[%clk 0:02:19]} 23. Nxc4 {[%clk 0:01:50]}  Rac8 {[%clk 0:02:03]} 24. Na5 {[%clk 0:01:38]}  Rxc1 {[%clk 0:02:00]} 25. Rxc1 {[%clk 0:01:39]}  Rxc1+ {[%clk 0:01:59]} 26. Bxc1 {[%clk 0:01:40]}  Qc7 {[%clk 0:01:59]} 27. Bd2 {[%clk 0:01:40]}  h5 {[%clk 0:01:57]} 28. b5 {[%clk 0:01:18]}  Bf8 {[%clk 0:01:52]} 29. Nc6 {[%clk 0:01:17]}  Bd7 {[%clk 0:01:40]} 30. a4 {[%clk 0:01:06]}  Bc5 {[%clk 0:01:20]} 31. Ba5 {[%clk 0:01:05]}  Qd6 {[%clk 0:01:19]} 32. Qc4 {[%clk 0:00:40]}  d3 {[%clk 0:01:09]} 33. Bd2 {[%clk 0:00:33]}  Bxc6 {[%clk 0:01:01]} 34. bxc6 {[%clk 0:00:33]}  Qxc6 {[%clk 0:01:02]} 35. Qxd3 {[%clk 0:00:31]}  Qxa4 {[%clk 0:01:00]} 36. Qd8+ {[%clk 0:00:24]}  Kg7 {[%clk 0:00:58]} 37. Bg5 {[%clk 0:00:20]}  Qc6 {[%clk 0:00:55]} 38. h4 {[%clk 0:00:16]}  Qb6 {[%clk 0:00:47]} 39. Qe8 {[%clk 0:00:14]}  Bxf2+ {[%clk 0:00:46]} 40. Kh2 {[%clk 0:00:13]}  Qe6 {[%clk 0:00:40]} 41. Bh6+ {[%clk 0:00:11]}  Kh7 {[%clk 0:00:36]} 42. Qf8 {[%clk 0:00:08]}  Qf6 {[%clk 0:00:36]} 43. Bg5 {[%clk 0:00:08]}  Qg7 {[%clk 0:00:36]} 44. Qe7 {[%clk 0:00:05]}  f6 {[%clk 0:00:32]} 45. Bxf6 {[%clk 0:00:03]}  Qxe7 {[%clk 0:00:32]} 46. Bxe7 {[%clk 0:00:04]}  Kg7 {[%clk 0:00:29]} 47. g3 {[%clk 0:00:02]}  Kf7 {[%clk 0:00:28]} 48. Bd8 {[%clk 0:00:02]}  Bb6 {[%clk 0:00:27]} 49. Bxb6 {[%clk 0:00:01]}  axb6 {[%clk 0:00:27]} 50. Kg2 {[%clk 0:00:02]}  g5 {[%clk 0:00:27]} 51. hxg5 {[%clk 0:00:01]}  Kg6 {[%clk 0:00:27]} 52. Kf2 {[%clk 0:00:01]}  Kxg5 {[%clk 0:00:28]} 0-1


[Site "https://www.chess.com"]

[Event "Titled Tuesday Blitz July 26 Late 2022"]
[White "Reprintsev, Alexander"]
[Black "Barria Zuniga, Daniel"]
[WhiteFideId "14100541"]
[BlackFideId "3400816"]
[WhiteElo "2108"]
[BlackElo "2414"]
[Result "0-1"]
[Round "07"]
[TimeControl "180+1"]
[Date "2022.07.26"]
[WhiteClock "0:01:05"]
[BlackClock "0:00:53"]

1. e4 {[%clk 0:02:51]}  c5 {[%clk 0:02:56]} 2. b3 {[%clk 0:02:50]}  Qa5 {[%clk 0:02:51]} 3. Bb2 {[%clk 0:02:44]}  Nf6 {[%clk 0:02:51]} 4. Bc3 {[%clk 0:02:43]}  Qc7 {[%clk 0:02:47]} 5. e5 {[%clk 0:02:35]}  Nd5 {[%clk 0:02:46]} 6. Nf3 {[%clk 0:02:34]}  Nc6 {[%clk 0:02:44]} 7. Qe2 {[%clk 0:02:33]}  g6 {[%clk 0:02:34]} 8. e6 {[%clk 0:02:32]}  f6 {[%clk 0:02:33]} 9. exd7+ {[%clk 0:02:32]}  Bxd7 {[%clk 0:02:33]} 10. g3 {[%clk 0:02:29]}  O-O-O {[%clk 0:02:30]} 11. Bg2 {[%clk 0:02:29]}  e5 {[%clk 0:02:30]} 12. O-O {[%clk 0:02:29]}  Be6 {[%clk 0:02:22]} 13. Na3 {[%clk 0:02:24]}  Bg7 {[%clk 0:02:22]} 14. Nc4 {[%clk 0:02:24]}  Rhe8 {[%clk 0:02:22]} 15. Rfe1 {[%clk 0:02:22]}  b6 {[%clk 0:02:20]} 16. a4 {[%clk 0:02:21]}  Bf7 {[%clk 0:02:19]} 17. a5 {[%clk 0:02:21]}  b5 {[%clk 0:02:19]} 18. Ne3 {[%clk 0:02:21]}  a6 {[%clk 0:02:17]} 19. Nxd5 {[%clk 0:02:19]}  Bxd5 {[%clk 0:02:17]} 20. Nh4 {[%clk 0:02:10]}  f5 {[%clk 0:01:59]} 21. Bxd5 {[%clk 0:02:07]}  Rxd5 {[%clk 0:02:00]} 22. d3 {[%clk 0:02:02]}  Nd4 {[%clk 0:01:27]} 23. Bxd4 {[%clk 0:02:02]}  cxd4 {[%clk 0:01:28]} 24. Rac1 {[%clk 0:01:57]}  Kb8 {[%clk 0:01:25]} 25. c4 {[%clk 0:01:57]}  dxc3 {[%clk 0:01:24]} 26. d4 {[%clk 0:01:56]}  e4 {[%clk 0:01:21]} 27. f3 {[%clk 0:01:53]}  Rxd4 {[%clk 0:01:16]} 28. Red1 {[%clk 0:01:23]}  Rxd1+ {[%clk 0:01:07]} 29. Qxd1 {[%clk 0:01:22]}  Rd8 {[%clk 0:01:04]} 30. Qe2 {[%clk 0:01:23]}  Rd2 {[%clk 0:01:02]} 31. Qf1 {[%clk 0:01:21]}  c2 {[%clk 0:00:57]} 32. fxe4 {[%clk 0:01:20]}  Bb2 {[%clk 0:00:57]} 33. Re1 {[%clk 0:01:05]}  c1=Q {[%clk 0:00:54]} 34. Rxc1 {[%clk 0:01:05]}  Qxc1 {[%clk 0:00:55]} 35. Qxc1 {[%clk 0:01:03]}  Bxc1 {[%clk 0:00:55]} 36. exf5 {[%clk 0:01:04]}  gxf5 {[%clk 0:00:55]} 37. Nxf5 {[%clk 0:01:05]}  Rd7 {[%clk 0:00:53]} 0-1


[Site "https://www.chess.com"]

[Event "Titled Tuesday Blitz July 26 Late 2022"]
[White "Romanchuk, Viktor"]
[Black "Fieberg, Samuel"]
[WhiteFideId "14109271"]
[BlackFideId "12901717"]
[WhiteElo "2242"]
[BlackElo "2420"]
[Result "1-0"]
[Round "07"]
[TimeControl "180+1"]
[Date "2022.07.27"]
[WhiteClock "0:00:13"]
[BlackClock "0:00:17"]

1. d4 {[%clk 0:03:00]}  d5 {[%clk 0:03:00]} 2. c4 {[%clk 0:03:00]}  e6 {[%clk 0:03:00]} 3. Nc3 {[%clk 0:03:00]}  a6 {[%clk 0:03:01]} 4. Nf3 {[%clk 0:02:58]}  dxc4 {[%clk 0:03:00]} 5. a4 {[%clk 0:02:49]}  Nc6 {[%clk 0:03:00]} 6. e3 {[%clk 0:02:44]}  Na5 {[%clk 0:03:00]} 7. Ne5 {[%clk 0:02:45]}  c5 {[%clk 0:02:58]} 8. Nxc4 {[%clk 0:02:39]}  cxd4 {[%clk 0:02:59]} 9. Nxa5 {[%clk 0:02:34]}  Qxa5 {[%clk 0:02:43]} 10. Qxd4 {[%clk 0:02:33]}  Nf6 {[%clk 0:02:35]} 11. Bd2 {[%clk 0:02:30]}  Qc5 {[%clk 0:02:34]} 12. Qxc5 {[%clk 0:02:27]}  Bxc5 {[%clk 0:02:34]} 13. Rc1 {[%clk 0:02:27]}  Bb4 {[%clk 0:02:27]} 14. Bd3 {[%clk 0:02:21]}  Bd7 {[%clk 0:02:26]} 15. Ne4 {[%clk 0:02:19]}  Bxd2+ {[%clk 0:02:26]} 16. Kxd2 {[%clk 0:02:18]}  Bc6 {[%clk 0:02:22]} 17. Nxf6+ {[%clk 0:02:07]}  gxf6 {[%clk 0:02:23]} 18. Rhg1 {[%clk 0:02:06]}  Ke7 {[%clk 0:02:23]} 19. a5 {[%clk 0:02:05]}  Rad8 {[%clk 0:02:20]} 20. Ke2 {[%clk 0:02:04]}  Rd6 {[%clk 0:02:20]} 21. Rc3 {[%clk 0:01:58]}  Rhd8 {[%clk 0:02:15]} 22. f3 {[%clk 0:01:56]}  Bb5 {[%clk 0:02:00]} 23. Rd1 {[%clk 0:01:54]}  f5 {[%clk 0:01:44]} 24. g3 {[%clk 0:01:45]}  Kf6 {[%clk 0:01:37]} 25. Rd2 {[%clk 0:01:25]}  e5 {[%clk 0:01:27]} 26. e4 {[%clk 0:01:20]}  f4 {[%clk 0:01:22]} 27. Rd1 {[%clk 0:01:08]}  h5 {[%clk 0:01:15]} 28. Rd2 {[%clk 0:01:07]}  h4 {[%clk 0:00:58]} 29. g4 {[%clk 0:01:04]}  Kg5 {[%clk 0:00:47]} 30. Rd1 {[%clk 0:01:03]}  f6 {[%clk 0:00:47]} 31. Rd2 {[%clk 0:01:03]}  h3 {[%clk 0:00:45]} 32. Rd1 {[%clk 0:01:02]}  Kh6 {[%clk 0:00:45]} 33. Rd2 {[%clk 0:01:02]}  Kg6 {[%clk 0:00:46]} 34. Rd1 {[%clk 0:01:02]}  R6d7 {[%clk 0:00:32]} 35. Rd2 {[%clk 0:01:01]}  Kg7 {[%clk 0:00:32]} 36. Rd1 {[%clk 0:00:59]}  Kf8 {[%clk 0:00:33]} 37. Rd2 {[%clk 0:00:59]}  Ke7 {[%clk 0:00:33]} 38. Rd1 {[%clk 0:00:59]}  Rd4 {[%clk 0:00:13]} 39. Rd2 {[%clk 0:00:54]}  R8d6 {[%clk 0:00:11]} 40. Rd1 {[%clk 0:00:49]}  Kd8 {[%clk 0:00:11]} 41. Rd2 {[%clk 0:00:49]}  Rb4 {[%clk 0:00:10]} 42. b3 {[%clk 0:00:27]}  Rxd3 {[%clk 0:00:09]} 43. Rdxd3+ {[%clk 0:00:27]}  Ke7 {[%clk 0:00:08]} 44. Kd2 {[%clk 0:00:21]}  Bxd3 {[%clk 0:00:08]} 45. Kxd3 {[%clk 0:00:21]}  Rb5 {[%clk 0:00:07]} 46. Kc2 {[%clk 0:00:16]}  Rxa5 {[%clk 0:00:07]} 47. Kb2 {[%clk 0:00:17]}  Kd7 {[%clk 0:00:06]} 48. Rd3+ {[%clk 0:00:15]}  Kc7 {[%clk 0:00:07]} 49. Rc3+ {[%clk 0:00:15]}  Kd7 {[%clk 0:00:06]} 50. Rd3+ {[%clk 0:00:15]}  Kc7 {[%clk 0:00:05]} 51. Rc3+ {[%clk 0:00:16]}  Kd6 {[%clk 0:00:06]} 52. Rd3+ {[%clk 0:00:14]}  Kc6 {[%clk 0:00:05]} 53. Rd8 {[%clk 0:00:12]}  Rc5 {[%clk 0:00:03]} 54. Rf8 {[%clk 0:00:11]}  Kb5 {[%clk 0:00:04]} 55. Rxf6 {[%clk 0:00:09]}  Rc7 {[%clk 0:00:04]} 56. Re6 {[%clk 0:00:08]}  Rd7 {[%clk 0:00:05]} 57. Rxe5+ {[%clk 0:00:08]}  Kb6 {[%clk 0:00:06]} 58. Rh5 {[%clk 0:00:07]}  Rd2+ {[%clk 0:00:06]} 59. Ka3 {[%clk 0:00:07]}  Rxh2 {[%clk 0:00:07]} 60. g5 {[%clk 0:00:07]}  Rg2 {[%clk 0:00:06]} 61. Rxh3 {[%clk 0:00:07]}  Rxg5 {[%clk 0:00:07]} 62. Rh4 {[%clk 0:00:08]}  Kc5 {[%clk 0:00:05]} 63. Rxf4 {[%clk 0:00:08]}  b5 {[%clk 0:00:05]} 64. Rf5+ {[%clk 0:00:07]}  Rxf5 {[%clk 0:00:05]} 65. exf5 {[%clk 0:00:08]}  Kd5 {[%clk 0:00:05]} 66. Kb4 {[%clk 0:00:08]}  Ke5 {[%clk 0:00:05]} 67. Ka5 {[%clk 0:00:08]}  Kxf5 {[%clk 0:00:05]} 68. Kxa6 {[%clk 0:00:09]}  Kf4 {[%clk 0:00:06]} 69. Kxb5 {[%clk 0:00:10]}  Kxf3 {[%clk 0:00:07]} 70. Kc6 {[%clk 0:00:10]}  Ke4 {[%clk 0:00:07]} 71. b4 {[%clk 0:00:11]}  Kd4 {[%clk 0:00:08]} 72. b5 {[%clk 0:00:12]}  Kc4 {[%clk 0:00:09]} 73. b6 {[%clk 0:00:13]}  Kd4 {[%clk 0:00:10]} 74. b7 {[%clk 0:00:14]}  Ke5 {[%clk 0:00:11]} 75. b8=Q+ {[%clk 0:00:15]}  Ke6 {[%clk 0:00:12]} 76. Qd6+ {[%clk 0:00:15]}  Kf7 {[%clk 0:00:13]} 77. Qe5 {[%clk 0:00:15]}  Kg6 {[%clk 0:00:14]} 78. Qf4 {[%clk 0:00:15]}  Kg7 {[%clk 0:00:14]} 79. Kd6 {[%clk 0:00:14]}  Kg6 {[%clk 0:00:15]} 80. Ke6 {[%clk 0:00:13]}  Kg7 {[%clk 0:00:16]} 81. Qg5+ {[%clk 0:00:13]}  Kh7 {[%clk 0:00:16]} 82. Kf7 {[%clk 0:00:13]}  Kh8 {[%clk 0:00:17]} 83. Qh5# {[%clk 0:00:13]} 1-0


[Site "https://www.chess.com"]

[Event "Titled Tuesday Blitz July 26 Late 2022"]
[White "Rosen, Eric"]
[Black "Ozates, Tuna"]
[WhiteFideId "2032562"]
[BlackFideId "6354521"]
[WhiteElo "2362"]
[BlackElo "1887"]
[Result "1-0"]
[Round "07"]
[TimeControl "180+1"]
[Date "2022.07.27"]
[WhiteClock "0:00:07"]
[BlackClock "0:00:04"]

1. d4 {[%clk 0:02:57]}  Nf6 {[%clk 0:02:59]} 2. Bf4 {[%clk 0:02:56]}  Nh5 {[%clk 0:02:58]} 3. Bg5 {[%clk 0:02:49]}  h6 {[%clk 0:02:58]} 4. Bh4 {[%clk 0:02:45]}  g5 {[%clk 0:02:59]} 5. e4 {[%clk 0:02:45]}  Nf6 {[%clk 0:02:58]} 6. e5 {[%clk 0:02:42]}  gxh4 {[%clk 0:02:56]} 7. exf6 {[%clk 0:02:41]}  exf6 {[%clk 0:02:57]} 8. Qh5 {[%clk 0:02:28]}  d5 {[%clk 0:02:55]} 9. Nc3 {[%clk 0:02:24]}  c6 {[%clk 0:02:55]} 10. Qxh4 {[%clk 0:02:24]}  Bf5 {[%clk 0:02:54]} 11. O-O-O {[%clk 0:02:10]}  Be7 {[%clk 0:02:51]} 12. Bd3 {[%clk 0:01:59]}  Be6 {[%clk 0:02:49]} 13. Nge2 {[%clk 0:01:58]}  Qa5 {[%clk 0:02:44]} 14. Rhe1 {[%clk 0:01:57]}  Nd7 {[%clk 0:02:43]} 15. Nf4 {[%clk 0:01:53]}  Nf8 {[%clk 0:02:43]} 16. Qh5 {[%clk 0:01:36]}  O-O-O {[%clk 0:02:23]} 17. Nxe6 {[%clk 0:01:32]}  fxe6 {[%clk 0:02:24]} 18. Qf7 {[%clk 0:01:32]}  Qc7 {[%clk 0:02:21]} 19. Re3 {[%clk 0:01:17]}  f5 {[%clk 0:02:20]} 20. g3 {[%clk 0:01:02]}  Bg5 {[%clk 0:01:48]} 21. Qxc7+ {[%clk 0:01:01]}  Kxc7 {[%clk 0:01:49]} 22. f4 {[%clk 0:01:01]}  Bf6 {[%clk 0:01:50]} 23. Ne2 {[%clk 0:00:56]}  h5 {[%clk 0:01:45]} 24. h4 {[%clk 0:00:49]}  Kd6 {[%clk 0:01:28]} 25. c3 {[%clk 0:00:48]}  Nd7 {[%clk 0:01:24]} 26. Ng1 {[%clk 0:00:46]}  c5 {[%clk 0:01:24]} 27. Rde1 {[%clk 0:00:35]}  Rde8 {[%clk 0:01:20]} 28. dxc5+ {[%clk 0:00:35]}  Nxc5 {[%clk 0:01:20]} 29. Bxf5 {[%clk 0:00:28]}  e5 {[%clk 0:00:40]} 30. fxe5+ {[%clk 0:00:24]}  Rxe5 {[%clk 0:00:41]} 31. Bc2 {[%clk 0:00:17]}  Rhe8 {[%clk 0:00:40]} 32. Rxe5 {[%clk 0:00:16]}  Bxe5 {[%clk 0:00:41]} 33. Kd1 {[%clk 0:00:10]}  Rg8 {[%clk 0:00:38]} 34. Ne2 {[%clk 0:00:10]}  Rg4 {[%clk 0:00:35]} 35. Bf5 {[%clk 0:00:07]}  Ra4 {[%clk 0:00:35]} 36. a3 {[%clk 0:00:07]}  b5 {[%clk 0:00:30]} 37. Kc2 {[%clk 0:00:06]}  a5 {[%clk 0:00:29]} 38. Rf1 {[%clk 0:00:04]}  b4 {[%clk 0:00:29]} 39. cxb4 {[%clk 0:00:03]}  axb4 {[%clk 0:00:30]} 40. axb4 {[%clk 0:00:04]}  Rxb4 {[%clk 0:00:31]} 41. Nc3 {[%clk 0:00:04]}  d4 {[%clk 0:00:29]} 42. Ne4+ {[%clk 0:00:04]}  Nxe4 {[%clk 0:00:27]} 43. Bxe4 {[%clk 0:00:05]}  Bxg3 {[%clk 0:00:28]} 44. Bg6 {[%clk 0:00:02]}  Rb5 {[%clk 0:00:20]} 45. Rh1 {[%clk 0:00:01]}  Ke6 {[%clk 0:00:18]} 46. Rh3 {[%clk 0:00:02]}  Be5 {[%clk 0:00:18]} 47. Bd3 {[%clk 0:00:02]}  Rc5+ {[%clk 0:00:18]} 48. Kd1 {[%clk 0:00:02]}  Bf4 {[%clk 0:00:18]} 49. Rf3 {[%clk 0:00:03]}  Rc1+ {[%clk 0:00:16]} 50. Ke2 {[%clk 0:00:03]}  Be3 {[%clk 0:00:17]} 51. Rf8 {[%clk 0:00:03]}  Rh1 {[%clk 0:00:17]} 52. Kf3 {[%clk 0:00:02]}  Rxh4 {[%clk 0:00:17]} 53. Rh8 {[%clk 0:00:02]}  Rh2 {[%clk 0:00:16]} 54. Re8+ {[%clk 0:00:02]}  Kd5 {[%clk 0:00:15]} 55. b4 {[%clk 0:00:02]}  h4 {[%clk 0:00:13]} 56. Rd8+ {[%clk 0:00:03]}  Ke5 {[%clk 0:00:13]} 57. Re8+ {[%clk 0:00:04]}  Kf6 {[%clk 0:00:13]} 58. Ke4 {[%clk 0:00:04]}  Rg2 {[%clk 0:00:13]} 59. Rh8 {[%clk 0:00:04]}  Rg4+ {[%clk 0:00:10]} 60. Kd5 {[%clk 0:00:04]}  Kg7 {[%clk 0:00:07]} 61. Rh7+ {[%clk 0:00:04]}  Kg8 {[%clk 0:00:07]} 62. b5 {[%clk 0:00:04]}  Rg5+ {[%clk 0:00:07]} 63. Kc6 {[%clk 0:00:04]}  Rg2 {[%clk 0:00:05]} 64. b6 {[%clk 0:00:03]}  Rb2 {[%clk 0:00:06]} 65. b7 {[%clk 0:00:04]}  Bf4 {[%clk 0:00:05]} 66. Rxh4 {[%clk 0:00:04]}  Be5 {[%clk 0:00:04]} 67. Re4 {[%clk 0:00:04]}  Bf6 {[%clk 0:00:05]} 68. Re8+ {[%clk 0:00:04]}  Kf7 {[%clk 0:00:06]} 69. b8=Q {[%clk 0:00:05]}  Rxb8 {[%clk 0:00:05]} 70. Rxb8 {[%clk 0:00:06]}  Ke6 {[%clk 0:00:06]} 71. Kb5 {[%clk 0:00:06]}  Kd5 {[%clk 0:00:06]} 72. Rf8 {[%clk 0:00:05]}  Be7 {[%clk 0:00:06]} 73. Rf5+ {[%clk 0:00:06]}  Ke6 {[%clk 0:00:06]} 74. Rh5 {[%clk 0:00:06]}  Bd6 {[%clk 0:00:06]} 75. Kc4 {[%clk 0:00:07]}  Be5 {[%clk 0:00:07]} 76. Be4 {[%clk 0:00:06]}  Kf6 {[%clk 0:00:07]} 77. Kd3 {[%clk 0:00:06]}  Ke6 {[%clk 0:00:07]} 78. Rf5 {[%clk 0:00:07]}  Kd6 {[%clk 0:00:07]} 79. Rf1 {[%clk 0:00:07]}  Ke6 {[%clk 0:00:08]} 80. Rb1 {[%clk 0:00:08]}  Kd6 {[%clk 0:00:08]} 81. Rb6+ {[%clk 0:00:09]}  Kc7 {[%clk 0:00:09]} 82. Rc6+ {[%clk 0:00:09]}  Kd7 {[%clk 0:00:10]} 83. Kc4 {[%clk 0:00:10]}  Ke7 {[%clk 0:00:08]} 84. Kd5 {[%clk 0:00:10]}  Bf6 {[%clk 0:00:08]} 85. Bg6 {[%clk 0:00:09]}  Bg7 {[%clk 0:00:05]} 86. Ke4 {[%clk 0:00:07]}  Bf6 {[%clk 0:00:05]} 87. Ra6 {[%clk 0:00:07]}  Kd7 {[%clk 0:00:04]} 88. Rxf6 {[%clk 0:00:07]} 1-0


[Site "https://www.chess.com"]

[Event "Titled Tuesday Blitz July 26 Late 2022"]
[White "Rustemov, Alexander"]
[Black "Martinez Alcantara, Jose Eduardo"]
[WhiteFideId "4119002"]
[BlackFideId "3805662"]
[WhiteElo "2811"]
[BlackElo "2703"]
[Result "0-1"]
[Round "07"]
[TimeControl "180+1"]
[Date "2022.07.26"]
[WhiteClock "0:00:02"]
[BlackClock "0:00:09"]

1. d4 {[%clk 0:03:00]}  Nf6 {[%clk 0:02:59]} 2. c4 {[%clk 0:03:01]}  e6 {[%clk 0:03:00]} 3. Nf3 {[%clk 0:03:01]}  d5 {[%clk 0:03:01]} 4. Nc3 {[%clk 0:03:01]}  a6 {[%clk 0:03:01]} 5. cxd5 {[%clk 0:03:00]}  exd5 {[%clk 0:03:02]} 6. Bg5 {[%clk 0:03:01]}  Be6 {[%clk 0:03:02]} 7. e3 {[%clk 0:03:01]}  Nbd7 {[%clk 0:03:00]} 8. Bd3 {[%clk 0:03:01]}  c6 {[%clk 0:03:00]} 9. Qc2 {[%clk 0:03:01]}  Bd6 {[%clk 0:03:00]} 10. Bf4 {[%clk 0:03:02]}  Qb8 {[%clk 0:03:00]} 11. Bxd6 {[%clk 0:03:01]}  Qxd6 {[%clk 0:02:59]} 12. h3 {[%clk 0:03:02]}  h6 {[%clk 0:02:56]} 13. b4 {[%clk 0:02:46]}  O-O {[%clk 0:02:52]} 14. O-O {[%clk 0:02:45]}  b5 {[%clk 0:02:49]} 15. a3 {[%clk 0:02:36]}  a5 {[%clk 0:02:45]} 16. Qb3 {[%clk 0:02:32]}  Nb6 {[%clk 0:02:21]} 17. Ra2 {[%clk 0:02:23]}  axb4 {[%clk 0:02:15]} 18. axb4 {[%clk 0:02:18]}  Rxa2 {[%clk 0:02:15]} 19. Nxa2 {[%clk 0:02:17]}  Ra8 {[%clk 0:02:14]} 20. Rb1 {[%clk 0:01:58]}  Nc4 {[%clk 0:02:11]} 21. Nc1 {[%clk 0:01:51]}  Ne4 {[%clk 0:02:04]} 22. Bxe4 {[%clk 0:00:51]}  dxe4 {[%clk 0:02:03]} 23. Ne5 {[%clk 0:00:47]}  Nd2 {[%clk 0:01:54]} 24. Qc2 {[%clk 0:00:47]}  Nxb1 {[%clk 0:01:53]} 25. Qxb1 {[%clk 0:00:48]}  Bd5 {[%clk 0:01:33]} 26. Ne2 {[%clk 0:00:38]}  Ra4 {[%clk 0:01:33]} 27. Nf4 {[%clk 0:00:36]}  Qxb4 {[%clk 0:01:28]} 28. Qd1 {[%clk 0:00:36]}  Qd6 {[%clk 0:00:41]} 29. Qg4 {[%clk 0:00:34]}  f6 {[%clk 0:00:24]} 30. Qc8+ {[%clk 0:00:33]}  Qf8 {[%clk 0:00:20]} 31. Qd7 {[%clk 0:00:27]}  fxe5 {[%clk 0:00:19]} 32. dxe5 {[%clk 0:00:28]}  Ra1+ {[%clk 0:00:12]} 33. Kh2 {[%clk 0:00:28]}  Ra8 {[%clk 0:00:12]} 34. e6 {[%clk 0:00:24]}  Re8 {[%clk 0:00:10]} 35. h4 {[%clk 0:00:02]}  Qe7 {[%clk 0:00:09]} 0-1


[Site "https://www.chess.com"]

[Event "Titled Tuesday Blitz July 26 Late 2022"]
[White "Salem, A.R. Saleh"]
[Black "Vlassov, Nikolai"]
[WhiteFideId "9301348"]
[BlackFideId "4103360"]
[WhiteElo "2679"]
[BlackElo "2324"]
[Result "1-0"]
[Round "07"]
[TimeControl "180+1"]
[Date "2022.07.26"]
[WhiteClock "0:01:45"]
[BlackClock "0:00:01"]

1. d4 {[%clk 0:03:00]}  Nf6 {[%clk 0:02:59]} 2. c4 {[%clk 0:03:01]}  Nc6 {[%clk 0:02:59]} 3. Nf3 {[%clk 0:03:01]}  e6 {[%clk 0:02:59]} 4. a3 {[%clk 0:03:01]}  d5 {[%clk 0:02:59]} 5. Nc3 {[%clk 0:03:01]}  dxc4 {[%clk 0:03:00]} 6. e4 {[%clk 0:03:00]}  Na5 {[%clk 0:03:00]} 7. Bxc4 {[%clk 0:03:00]}  Nxc4 {[%clk 0:03:01]} 8. Qa4+ {[%clk 0:03:01]}  Bd7 {[%clk 0:03:01]} 9. Qxc4 {[%clk 0:03:01]}  Be7 {[%clk 0:03:02]} 10. O-O {[%clk 0:03:01]}  O-O {[%clk 0:03:02]} 11. Re1 {[%clk 0:03:02]}  a5 {[%clk 0:03:00]} 12. Bf4 {[%clk 0:03:02]}  Rc8 {[%clk 0:02:49]} 13. Rad1 {[%clk 0:03:02]}  Qe8 {[%clk 0:02:41]} 14. Ne5 {[%clk 0:03:01]}  b5 {[%clk 0:02:40]} 15. Qd3 {[%clk 0:02:55]}  b4 {[%clk 0:02:40]} 16. axb4 {[%clk 0:02:54]}  axb4 {[%clk 0:02:41]} 17. Nxd7 {[%clk 0:02:54]}  Qxd7 {[%clk 0:02:34]} 18. Ne2 {[%clk 0:02:39]}  c5 {[%clk 0:02:20]} 19. dxc5 {[%clk 0:02:34]}  Qxd3 {[%clk 0:02:19]} 20. Rxd3 {[%clk 0:02:35]}  Nxe4 {[%clk 0:02:18]} 21. c6 {[%clk 0:02:30]}  Bf6 {[%clk 0:02:05]} 22. Nd4 {[%clk 0:02:13]}  Nc5 {[%clk 0:01:58]} 23. Rdd1 {[%clk 0:02:14]}  Rfe8 {[%clk 0:01:28]} 24. Bd6 {[%clk 0:02:13]}  Bxd4 {[%clk 0:01:22]} 25. Rxd4 {[%clk 0:02:14]}  Rxc6 {[%clk 0:01:17]} 26. Rc1 {[%clk 0:02:14]}  Nb3 {[%clk 0:01:08]} 27. Rxc6 {[%clk 0:02:14]}  Nxd4 {[%clk 0:01:08]} 28. Rc4 {[%clk 0:02:15]}  Nf5 {[%clk 0:01:01]} 29. Bxb4 {[%clk 0:02:16]}  Rd8 {[%clk 0:00:58]} 30. g3 {[%clk 0:02:16]}  h5 {[%clk 0:00:57]} 31. Kf1 {[%clk 0:02:15]}  Rd1+ {[%clk 0:00:49]} 32. Ke2 {[%clk 0:02:15]}  Rb1 {[%clk 0:00:50]} 33. Bc3 {[%clk 0:02:15]}  Kh7 {[%clk 0:00:41]} 34. h4 {[%clk 0:02:14]}  Kg6 {[%clk 0:00:39]} 35. Rc5 {[%clk 0:02:10]}  f6 {[%clk 0:00:37]} 36. b4 {[%clk 0:02:09]}  e5 {[%clk 0:00:36]} 37. Kd3 {[%clk 0:02:04]}  Kf7 {[%clk 0:00:21]} 38. Rc6 {[%clk 0:01:58]}  Ne7 {[%clk 0:00:19]} 39. Rd6 {[%clk 0:01:56]}  g5 {[%clk 0:00:14]} 40. hxg5 {[%clk 0:01:55]}  fxg5 {[%clk 0:00:14]} 41. Kc2 {[%clk 0:01:55]}  Rf1 {[%clk 0:00:14]} 42. Rd2 {[%clk 0:01:54]}  h4 {[%clk 0:00:12]} 43. gxh4 {[%clk 0:01:55]}  gxh4 {[%clk 0:00:13]} 44. Bxe5 {[%clk 0:01:55]}  h3 {[%clk 0:00:13]} 45. b5 {[%clk 0:01:55]}  Ke6 {[%clk 0:00:13]} 46. Bg3 {[%clk 0:01:55]}  Nd5 {[%clk 0:00:13]} 47. b6 {[%clk 0:01:55]}  Nxb6 {[%clk 0:00:06]} 48. Rd6+ {[%clk 0:01:56]}  Kf5 {[%clk 0:00:07]} 49. Rh6 {[%clk 0:01:57]}  Nd5 {[%clk 0:00:05]} 50. Rxh3 {[%clk 0:01:52]}  Kg4 {[%clk 0:00:05]} 51. Rh8 {[%clk 0:01:49]}  Nf6 {[%clk 0:00:04]} 52. Rf8 {[%clk 0:01:47]}  Ne4 {[%clk 0:00:04]} 53. Rf4+ {[%clk 0:01:47]}  Kh3 {[%clk 0:00:02]} 54. Rxe4 {[%clk 0:01:48]}  Kg2 {[%clk 0:00:02]} 55. Kd2 {[%clk 0:01:48]}  Ra1 {[%clk 0:00:02]} 56. Re5 {[%clk 0:01:46]}  Kf3 {[%clk 0:00:01]} 57. Re3+ {[%clk 0:01:45]}  Kg2 {[%clk 0:00:01]} 58. Rd3 {[%clk 0:01:45]} 1-0


[Site "https://www.chess.com"]